bitfinex/quotes_BTCUSD_20251029
["timestamp","ask_amount","ask_price","bid_price","bid_amount"]
[1761714114955,0.37343011,112980.0,112970.0,0.26443582]
[1761714115160,0.38169955,112980.0,112970.0,0.26443582]
[1761714118635,0.38169955,112980.0,112970.0,0.26423589]
[1761714119474,0.38141051,112980.0,112970.0,0.26423589]
[1761714119681,0.38116207,112980.0,112970.0,0.26423589]
[1761714121920,0.53662587,112990.0,112970.0,0.26423589]
[1761714122137,0.37289263,112980.0,112970.0,0.26423589]
[1761714122346,0.38116272,112980.0,112970.0,0.23763929]
[1761714122564,0.38116272,112980.0,112970.0,0.26423377]
[1761714123794,0.00827009,112980.0,112970.0,0.26423377]
[1761714124008,0.38116272,112980.0,112970.0,0.26423377]
[1761714124681,0.00827009,112980.0,112970.0,0.26423377]
[1761714131371,0.00827009,112980.0,112970.0,0.23763929]
[1761714131589,0.03486436,112980.0,112970.0,0.23763929]
[1761714135308,0.04564756,112980.0,112970.0,0.23763929]
[1761714135545,0.05393705,112980.0,112970.0,0.23763929]
[1761714138361,0.07786795,112980.0,112970.0,0.23763929]
[1761714140894,0.02734278,112980.0,112970.0,0.23763929]
[1761714141396,0.00828949,112980.0,112970.0,0.2642316]
[1761714142179,0.00828949,112980.0,112970.0,0.2652316]
[1761714142589,0.00828949,112980.0,112970.0,0.22271929]
[1761714146671,0.00828949,112980.0,112970.0,0.59561192]
[1761714146920,0.00206082,112990.0,112980.0,1.26280774]
[1761714147159,9.66548851,113000.0,112990.0,0.60046944]
[1761714147376,9.66548851,113000.0,112990.0,0.77352845]
[1761714147598,9.66570109,113000.0,112990.0,0.77352845]
[1761714147831,9.66570109,113000.0,112990.0,0.34397727]
[1761714148058,9.66570109,113000.0,112990.0,0.76721727]
[1761714148300,9.66570109,113000.0,112990.0,1.0568699]
[1761714148551,9.66570109,113000.0,112990.0,1.1401099]
[1761714149426,9.66570109,113000.0,112990.0,1.54860334]
[1761714149427,9.16554899,113000.0,112990.0,1.54860334]
[1761714149644,8.91772819,113000.0,112990.0,1.57617994]
[1761714149870,8.78172091,113000.0,112990.0,1.57617994]
[1761714150111,8.44010756,113000.0,112990.0,1.57617994]
[1761714150331,8.26628062,113000.0,112990.0,1.56917994]
[1761714150552,8.16129742,113000.0,112990.0,1.49293994]
[1761714150764,8.16129742,113000.0,112990.0,1.20340731]
[1761714150977,8.16129742,113000.0,112990.0,1.06386505]
[1761714151229,8.16129742,113000.0,112990.0,1.15722504]
[1761714151685,8.16129742,113000.0,112990.0,1.15822504]
[1761714151887,8.16129742,113000.0,112990.0,1.14122505]
[1761714152278,8.16129742,113000.0,112990.0,1.16022504]
[1761714152483,8.16129742,113000.0,112990.0,1.14022505]
[1761714152665,8.16129742,113000.0,112990.0,1.14122505]
[1761714152852,8.16129742,113000.0,112990.0,1.15822504]
[1761714154941,8.16129742,113000.0,112990.0,1.14822505]
[1761714155091,8.16129742,113000.0,112990.0,1.15822504]
[1761714155459,8.16129742,113000.0,112990.0,1.57729994]
[1761714155957,8.16129742,113000.0,112990.0,1.20440731]
[1761714156966,8.16129742,113000.0,112990.0,1.15822504]
[1761714161392,8.16129742,113000.0,112990.0,1.14822505]
[1761714161595,8.16129742,113000.0,112990.0,1.15822504]
[1761714162317,8.16129742,113000.0,112990.0,1.14822505]
[1761714162528,8.16129742,113000.0,112990.0,1.15822504]
[1761714163795,8.16129742,113000.0,112990.0,1.53111767]
[1761714164256,7.66352071,113000.0,112990.0,1.57729994]
[1761714164471,7.46471219,113000.0,112990.0,1.57729994]
[1761714164680,7.18737602,113000.0,112990.0,1.57729994]
[1761714164886,7.00834428,113000.0,112990.0,1.57729994]
[1761714165116,6.77242692,113000.0,112990.0,1.57729994]
[1761714165518,6.54619734,113000.0,112990.0,1.94795535]
[1761714165718,6.31739423,113000.0,112990.0,1.94795535]
[1761714165866,6.06362394,113000.0,112990.0,1.94795535]
[1761714166469,5.47120941,113000.0,112990.0,1.94795535]
[1761714166685,5.17218101,113000.0,112990.0,3.06439602]
[1761714166889,4.99584105,113000.0,112990.0,1.94795535]
[1761714167976,4.22974705,113000.0,112990.0,1.94795535]
[1761714168180,4.11602971,113000.0,112990.0,2.32010224]
[1761714168376,3.93359891,113000.0,112990.0,3.13157052]
[1761714168749,3.62279687,113000.0,112990.0,3.13157052]
[1761714169090,3.42724136,113000.0,112990.0,3.12457052]
[1761714169290,3.28885615,113000.0,112990.0,3.12457052]
[1761714169520,3.09887838,113000.0,112990.0,3.13457052]
[1761714169678,2.96815183,113000.0,112990.0,3.13457052]
[1761714169878,2.77518464,113000.0,112990.0,3.13357052]
[1761714170085,2.77518464,113000.0,112990.0,3.13557052]
[1761714170086,2.50293095,113000.0,112990.0,3.13557052]
[1761714170298,1.6865396,113000.0,112990.0,3.13557052]
[1761714170530,1.56881027,113000.0,112990.0,3.13357052]
[1761714171003,1.25918676,113000.0,112990.0,3.13557052]
[1761714171204,1.09147534,113000.0,112990.0,3.04221052]
[1761714171421,1.03668609,113000.0,112990.0,3.12557052]
[1761714171626,1.03668609,113000.0,112990.0,3.13857052]
[1761714171970,0.62452619,113000.0,112990.0,3.13857052]
[1761714172792,0.62452619,113000.0,112990.0,2.02212985]
[1761714173654,0.62452619,113000.0,112990.0,2.39427674]
[1761714173914,0.62452619,113000.0,112990.0,2.02212985]
[1761714174343,0.62452619,113000.0,112990.0,3.13857052]
[1761714174548,0.62452619,113000.0,112990.0,2.02212985]
[1761714177298,0.62452619,113000.0,112990.0,1.93876985]
[1761714177515,0.62452619,113000.0,112990.0,2.02212985]
[1761714180197,0.62452619,113000.0,112990.0,1.92876986]
[1761714180410,0.62452619,113000.0,112990.0,1.90258757]
[1761714180613,0.0002,113010.0,113000.0,0.53699113]
[1761714180797,0.0002,113010.0,113000.0,2.95321376]
[1761714181337,0.0002,113020.0,113010.0,0.57315774]
[1761714181558,0.00068447,113020.0,113010.0,1.17940364]
[1761714181988,0.00068447,113020.0,113010.0,1.92789742]
[1761714183022,0.00068447,113020.0,113010.0,1.93789742]
[1761714183233,0.00068447,113020.0,113010.0,1.93989742]
[1761714191716,0.00110955,113020.0,113010.0,1.93989742]
[1761714196388,0.00110955,113020.0,113010.0,1.56775053]
[1761714196866,0.00110955,113020.0,113010.0,1.44812825]
[1761714197074,0.00110955,113020.0,113010.0,1.52736825]
[1761714197278,0.00110955,113020.0,113010.0,1.56355053]
[1761714204205,0.37325644,113020.0,113010.0,0.16265901]
[1761714204904,0.37325644,113020.0,113010.0,0.15065901]
[1761714205328,0.37325644,113020.0,113010.0,0.15465901]
[1761714209764,0.37325644,113020.0,113010.0,0.03539]
[1761714209765,0.81602333,113020.0,113010.0,0.03539]
[1761714209970,0.81602333,113020.0,113010.0,0.08179]
[1761714209971,0.74540333,113020.0,113010.0,0.08179]
[1761714210160,0.00110955,113020.0,113010.0,0.08179]
[1761714210325,0.37325644,113020.0,113010.0,0.08179]
[1761714210535,0.37325644,113020.0,113010.0,0.07779]
[1761714211389,0.37325644,113020.0,113010.0,0.07879]
[1761714212201,0.37325644,113020.0,113010.0,0.07779]
[1761714213714,0.37325644,113020.0,113010.0,0.07979]
[1761714213904,0.74540333,113020.0,113010.0,0.07979]
[1761714215205,0.37325644,113020.0,113010.0,0.07979]
[1761714219637,0.37325644,113020.0,113010.0,0.06387]
[1761714220510,0.74540333,113020.0,113010.0,0.06387]
[1761714221941,0.37325644,113020.0,113010.0,0.06387]
[1761714222145,0.00110955,113020.0,113010.0,0.06387]
[1761714222554,0.37325644,113020.0,113010.0,0.06387]
[1761714223852,0.37214689,113020.0,113010.0,0.06387]
[1761714224056,0.37634689,113030.0,113010.0,0.06387]
[1761714224263,0.37647549,113030.0,113020.0,0.11332]
[1761714227074,0.37647549,113030.0,113020.0,0.11432]
[1761714227358,0.40809549,113030.0,113020.0,0.06914]
[1761714227519,0.40830923,113030.0,113020.0,0.06914]
[1761714228693,0.0043286,113030.0,113020.0,0.11432]
[1761714229440,0.0043286,113030.0,113020.0,0.13201598]
[1761714229671,0.0043286,113030.0,113020.0,1.17589947]
[1761714230106,0.0045411,113030.0,113020.0,1.17789947]
[1761714230313,0.0045411,113030.0,113020.0,1.17589947]
[1761714230743,0.0045411,113030.0,113020.0,1.17789947]
[1761714231171,0.0045411,113030.0,113020.0,0.54313901]
[1761714231378,0.0045411,113030.0,113020.0,0.20913901]
[1761714232435,0.0045411,113030.0,113020.0,0.21013901]
[1761714232648,0.0045411,113030.0,113020.0,0.20313901]
[1761714233227,0.0045411,113030.0,113020.0,0.57549964]
[1761714233432,0.0045411,113030.0,113020.0,0.75445947]
[1761714233640,0.0045411,113030.0,113020.0,0.57549964]
[1761714233850,0.0045411,113030.0,113020.0,0.38009884]
[1761714234058,0.0045411,113030.0,113020.0,0.38409884]
[1761714234271,0.0045411,113030.0,113020.0,0.38009884]
[1761714234767,0.0045411,113030.0,113020.0,0.38609884]
[1761714235238,0.0045411,113030.0,113020.0,0.75845947]
[1761714235436,0.0045411,113030.0,113020.0,0.75945947]
[1761714239399,0.0045411,113030.0,113020.0,0.38709884]
[1761714239614,0.0045411,113030.0,113020.0,0.75945947]
[1761714240531,0.0045411,113030.0,113020.0,0.38709884]
[1761714241155,0.0045411,113030.0,113020.0,0.21013901]
[1761714242202,0.0045411,113030.0,113020.0,0.38709884]
[1761714243062,0.40852173,113030.0,113020.0,0.07514]
[1761714243278,0.0361611,113030.0,113020.0,0.07514]
[1761714243494,0.0045411,113030.0,113020.0,0.12032]
[1761714243913,0.0045411,113030.0,113020.0,0.11432]
[1761714244123,0.0045411,113030.0,113020.0,0.11332]
[1761714244336,0.0045411,113030.0,113020.0,0.11532]
[1761714253335,0.37690173,113030.0,113020.0,0.11532]
[1761714255503,0.0045411,113030.0,113020.0,0.11532]
[1761714285204,0.0045411,113030.0,113020.0,0.0994]
[1761714300901,0.50190553,113040.0,113020.0,0.05422]
[1761714301058,0.50190553,113040.0,113020.0,0.10256]
[1761714301276,0.37227772,113030.0,113020.0,0.10256]
[1761714304337,0.12962781,113040.0,113020.0,0.10256]
[1761714304537,0.63751661,113040.0,113020.0,0.10256]
[1761714304743,0.37227772,113030.0,113020.0,0.10256]
[1761714305364,0.62921625,113040.0,113020.0,0.10256]
[1761714305567,0.37227772,113030.0,113020.0,0.10256]
[1761714306802,0.62921625,113040.0,113020.0,0.10256]
[1761714307006,0.63751648,113040.0,113020.0,0.10256]
[1761714307190,0.46058795,113040.0,113020.0,0.10256]
[1761714307425,0.63751674,113040.0,113020.0,0.10256]
[1761714307664,0.63751674,113040.0,113020.0,0.10056]
[1761714308073,0.63751674,113040.0,113020.0,0.10156]
[1761714308493,0.48460772,113040.0,113030.0,0.06511]
[1761714308694,0.66153624,113040.0,113030.0,0.06511]
[1761714309102,0.61464871,113040.0,113030.0,0.06511]
[1761714309732,0.06544247,113040.0,113030.0,0.06511]
[1761714309938,0.61464871,113040.0,113030.0,0.06511]
[1761714310147,0.61464871,113040.0,113030.0,0.06611]
[1761714312599,0.24237099,113040.0,113030.0,0.06611]
[1761714312818,0.61464871,113040.0,113030.0,0.06611]
[1761714313018,0.63377197,113040.0,113030.0,0.06611]
[1761714313216,0.68292197,113040.0,113030.0,0.06611]
[1761714316338,0.61464871,113040.0,113030.0,0.06611]
[1761714316527,0.63377195,113040.0,113030.0,0.06611]
[1761714316899,0.01933571,113040.0,113030.0,0.11429]
[1761714317173,0.37249019,113040.0,113030.0,0.11429]
[1761714317367,0.39161343,113040.0,113030.0,0.11429]
[1761714317771,0.01933571,113040.0,113030.0,0.11429]
[1761714317943,0.37249019,113040.0,113030.0,0.11429]
[1761714318128,0.39161343,113040.0,113030.0,0.11429]
[1761714318763,0.00021247,113040.0,113030.0,0.48656772]
[1761714318977,0.00021247,113040.0,113030.0,0.11429]
[1761714319794,0.00021247,113040.0,113030.0,0.11329]
[1761714320199,0.00021247,113040.0,113030.0,0.11429]
[1761714320583,0.00021247,113040.0,113030.0,0.11329]
[1761714321015,0.00021247,113040.0,113030.0,0.11529]
[1761714322305,0.00021247,113040.0,113030.0,0.38205318]
[1761714322526,0.00021247,113040.0,113030.0,0.20510901]
[1761714322726,0.00021247,113040.0,113030.0,0.57738673]
[1761714322935,0.00021247,113040.0,113030.0,0.7543309]
[1761714323155,0.37387019,113050.0,113040.0,0.06113]
[1761714323372,0.00159247,113050.0,113040.0,0.10931]
[1761714324699,0.00159247,113050.0,113040.0,0.11131]
[1761714325568,0.03314247,113050.0,113040.0,0.06313]
[1761714326494,0.40542019,113050.0,113040.0,0.06313]
[1761714326923,0.40542019,113050.0,113040.0,0.11131]
[1761714328413,0.40542019,113050.0,113040.0,0.06313]
[1761714328694,0.60230306,113050.0,113040.0,0.06313]
[1761714328906,0.27938778,113050.0,113040.0,0.002]
[1761714329114,0.6782437,113050.0,113040.0,0.002]
[1761714329333,0.69733686,113050.0,113040.0,0.002]
[1761714330281,0.69733744,113050.0,113040.0,0.002]
[1761714331150,0.6782437,113050.0,113040.0,0.002]
[1761714338635,0.69734098,113050.0,113040.0,0.002]
[1761714341189,0.70563065,113050.0,113040.0,0.002]
[1761714341455,0.69734098,113050.0,113040.0,0.002]
[1761714342113,0.69734098,113050.0,113030.0,0.03341]
[1761714342114,0.17692852,113040.0,113030.0,0.03341]
[1761714342341,0.58081624,113040.0,113030.0,0.06616]
[1761714342764,0.60739458,113040.0,113030.0,0.06616]
[1761714343005,0.58081624,113040.0,113030.0,0.06616]
[1761714343465,0.58081624,113040.0,113030.0,0.06816]
[1761714344115,0.60484624,113040.0,113030.0,0.06816]
[1761714344330,1.02445396,113040.0,113030.0,0.002]
[1761714344541,0.65217624,113040.0,113030.0,0.002]
[1761714344750,0.6787562,113040.0,113030.0,0.002]
[1761714345608,0.6787562,113040.0,113020.0,0.08484]
[1761714349387,0.67874951,113040.0,113020.0,0.08484]
[1761714351180,0.67874951,113040.0,113030.0,0.03275]
[1761714351378,0.67874951,113040.0,113030.0,0.00775]
[1761714352240,0.25914848,113040.0,113030.0,0.01529]
[1761714352725,0.30647848,113040.0,113030.0,0.00754]
[1761714353502,0.25914848,113040.0,113030.0,0.04029]
[1761714353980,0.25914848,113040.0,113030.0,0.04129]
[1761714356755,0.30647848,113040.0,113030.0,0.04129]
[1761714358752,0.25914848,113040.0,113030.0,0.04129]
[1761714359179,0.30647848,113040.0,113030.0,0.04129]
[1761714361190,0.25914848,113040.0,113030.0,0.04129]
[1761714363062,0.23256852,113040.0,113030.0,0.04129]
[1761714365505,0.23411338,113050.0,113030.0,0.09046]
[1761714365708,0.29317841,113050.0,113040.0,0.05598]
[1761714367185,0.29317841,113050.0,113040.0,0.05698]
[1761714367389,0.26156841,113050.0,113040.0,0.05698]
[1761714367592,0.24159841,113050.0,113040.0,0.10581]
[1761714367773,0.24159841,113050.0,113040.0,0.0411]
[1761714368104,0.27332841,113050.0,113040.0,0.0411]
[1761714370255,0.04754501,113050.0,113040.0,0.0411]
[1761714370455,0.00185331,113050.0,113040.0,0.08194]
[1761714371850,0.00185331,113050.0,113040.0,0.08094]
[1761714372306,0.00185331,113050.0,113040.0,0.08294]
[1761714376139,0.17876618,113050.0,113040.0,0.08294]
[1761714376577,0.00185331,113050.0,113040.0,0.08294]
[1761714378495,0.17876618,113050.0,113040.0,0.08294]
[1761714378907,0.65889721,113050.0,113040.0,0.002]
[1761714379567,0.31320287,113050.0,113040.0,0.002]
[1761714379790,0.6854739,113050.0,113040.0,0.002]
[1761714380814,0.31320287,113050.0,113040.0,0.00807]
[1761714381022,0.26679287,113050.0,113040.0,0.03954]
[1761714381226,0.20534287,113050.0,113040.0,0.08038]
[1761714381406,0.26679287,113050.0,113040.0,0.03954]
[1761714381601,0.24021618,113050.0,113040.0,0.03954]
[1761714381835,0.28662618,113050.0,113040.0,0.03954]
[1761714385620,0.24021618,113050.0,113040.0,0.03954]
[1761714388253,0.06330331,113050.0,113040.0,0.03954]
[1761714389280,0.00185331,113050.0,113040.0,0.03954]
[1761714389486,0.00185331,113050.0,113040.0,0.08038]
[1761714389704,0.03394331,113050.0,113040.0,0.03954]
[1761714390835,0.00185331,113050.0,113040.0,0.45265103]
[1761714391207,0.00185331,113050.0,113040.0,0.08038]
[1761714392033,0.00185331,113050.0,113040.0,0.07838]
[1761714392373,0.00185331,113050.0,113040.0,0.08238]
[1761714392554,0.00185331,113050.0,113040.0,0.10007285]
[1761714394521,0.00185331,113050.0,113040.0,0.08238]
[1761714401238,0.65894721,113050.0,113040.0,0.01007]
[1761714402237,0.68552388,113050.0,113040.0,0.01007]
[1761714402756,0.68552388,113050.0,113040.0,0.0418]
[1761714404940,0.68552388,113050.0,113040.0,0.01007]
[1761714411274,0.68546526,113050.0,113040.0,0.01007]
[1761714412272,0.68546526,113050.0,113040.0,0.0418]
[1761714415836,0.63889526,113050.0,113040.0,0.0418]
[1761714419228,0.63293093,113050.0,113040.0,0.0418]
[1761714419683,0.20348954,113050.0,113040.0,0.08675]
[1761714420866,0.20348954,113050.0,113040.0,0.45896241]
[1761714421074,0.20348954,113050.0,113040.0,0.08675]
[1761714421720,0.23606954,113050.0,113040.0,0.0418]
[1761714421927,0.60828195,113050.0,113040.0,0.0418]
[1761714422357,0.68361195,113050.0,113040.0,0.004]
[1761714423344,0.17692852,113040.0,113030.0,0.00754]
[1761714423772,0.17692852,113040.0,113030.0,0.03927]
[1761714424173,0.17692852,113040.0,113030.0,0.08422]
[1761714425066,0.17692852,113040.0,113030.0,0.03927]
[1761714425463,0.17692852,113040.0,113030.0,0.08422]
[1761714425874,0.17692852,113040.0,113030.0,0.03927]
[1761714426426,0.17692852,113040.0,113030.0,0.04127]
[1761714431202,0.20749852,113040.0,113030.0,0.04127]
[1761714437125,0.17692852,113040.0,113030.0,0.04127]
[1761714437454,0.17692852,113040.0,113030.0,0.08622]
[1761714439412,0.20749852,113040.0,113030.0,0.04127]
[1761714441372,0.17692852,113040.0,113030.0,0.04127]
[1761714441987,0.17692852,113040.0,113030.0,0.08622]
[1761714442343,0.20749852,113040.0,113030.0,0.04127]
[1761714442743,0.17692852,113040.0,113030.0,0.04127]
[1761714442944,0.17692852,113040.0,113030.0,0.08622]
[1761714454355,1.02705334,113040.0,113030.0,0.002]
[1761714454565,0.28262852,113040.0,113030.0,0.002]
[1761714454767,1.05447554,113040.0,113030.0,0.002]
[1761714455176,0.17694417,113030.0,113020.0,0.03666]
[1761714455381,0.65485658,113030.0,113020.0,0.03666]
[1761714455786,0.17695983,113020.0,113010.0,0.01266952]
[1761714455964,0.60582224,113020.0,113010.0,0.04594952]
[1761714456573,0.65487224,113020.0,113010.0,0.04594952]
[1761714456760,0.65487224,113020.0,113010.0,0.01266952]
[1761714457174,0.28265983,113020.0,113010.0,0.01266952]
[1761714457767,0.65487224,113020.0,113010.0,0.04314952]
[1761714457972,0.6814556,113020.0,113010.0,0.04314952]
[1761714459130,0.6814556,113020.0,113010.0,0.04514952]
[1761714461252,0.6814556,113020.0,113010.0,0.01466952]
[1761714462922,1.05366801,113020.0,113010.0,0.01466952]
[1761714463132,1.05366801,113020.0,113010.0,0.00300952]
[1761714465076,1.05366801,113020.0,113010.0,0.00100952]
[1761714467472,0.30924319,113020.0,113010.0,0.00100952]
[1761714467679,1.05366801,113020.0,113010.0,0.00100952]
[1761714471405,0.68167987,113020.0,113010.0,0.00100952]
[1761714472934,0.26019319,113020.0,113010.0,0.03148952]
[1761714473141,0.63262987,113020.0,113010.0,0.03148952]
[1761714473730,0.26019319,113020.0,113010.0,0.03148952]
[1761714473933,0.31013319,113020.0,113010.0,0.03148952]
[1761714474369,0.02658336,113020.0,113010.0,1.26882943]
[1761714474575,0.176913,113050.0,113010.0,1.25998066]
[1761714474780,0.17691287,113050.0,113040.0,0.0146]
[1761714475209,0.20921287,113050.0,113040.0,0.0146]
[1761714476037,0.17691287,113050.0,113040.0,0.0156]
[1761714483047,0.65535955,113050.0,113040.0,0.001]
[1761714483473,0.68193756,113050.0,113040.0,0.001]
[1761714483678,0.77175657,113050.0,113040.0,0.001]
[1761714486175,0.80793885,113050.0,113040.0,0.001]
[1761714486829,0.17695768,113030.0,113010.0,0.07569875]
[1761714487062,0.17695768,113030.0,113010.0,0.16551776]
[1761714487303,0.20750768,113030.0,113020.0,0.02818]
[1761714489340,0.20750768,113030.0,113020.0,0.02918]
[1761714492870,0.27463768,113030.0,113020.0,0.001]
[1761714493360,0.64707436,113030.0,113020.0,0.001]
[1761714494712,0.77307565,113030.0,113020.0,0.001]
[1761714495149,0.79966103,113030.0,113020.0,0.001]
[1761714495808,0.17695983,113020.0,113010.0,0.00100952]
[1761714496016,0.64901651,113020.0,113010.0,0.00100952]
[1761714496655,0.67560189,113020.0,113010.0,0.00100952]
[1761714503281,0.30316521,113020.0,113010.0,0.00100952]
[1761714503721,0.67560189,113020.0,113010.0,0.00100952]
[1761714504055,0.64901651,113020.0,113010.0,0.00100952]
[1761714504255,0.27657983,113020.0,113010.0,0.00100952]
[1761714505703,0.27657983,113020.0,113010.0,0.01323952]
[1761714507282,0.23234983,113020.0,113010.0,0.04028952]
[1761714509284,0.23234983,113020.0,113010.0,0.04128952]
[1761714509928,0.27657983,113020.0,113010.0,0.04128952]
[1761714510146,0.23234983,113020.0,113010.0,0.04128952]
[1761714512151,0.17695983,113020.0,113010.0,0.06833952]
[1761714516257,0.17695983,113020.0,113010.0,0.06733952]
[1761714516468,0.17695983,113020.0,113010.0,0.06933952]
[1761714517829,0.17695768,113030.0,113010.0,0.72626616]
[1761714518044,0.17695768,113030.0,113020.0,0.41785668]
[1761714518284,0.19806768,113030.0,113020.0,0.02271]
[1761714518540,0.27190768,113030.0,113010.0,0.01523952]
[1761714518765,0.27190768,113030.0,113010.0,0.01323952]
[1761714519002,0.27190768,113030.0,113010.0,0.03594952]
[1761714519211,0.27190768,113030.0,113010.0,0.03794952]
[1761714519425,0.17695983,113020.0,113010.0,0.03794952]
[1761714519845,0.17695983,113020.0,113010.0,0.06065952]
[1761714520974,0.17695983,113020.0,113010.0,0.05865952]
[1761714521423,0.17695983,113020.0,113010.0,0.06265952]
[1761714523949,0.20793983,113020.0,113010.0,0.03994952]
[1761714524172,0.22904983,113020.0,113010.0,0.03994952]
[1761714525073,0.17695983,113020.0,113010.0,0.03594952]
[1761714525290,0.17695983,113020.0,113010.0,0.05865952]
[1761714525507,0.17695983,113020.0,113010.0,0.06065952]
[1761714526445,0.17695983,113020.0,113010.0,0.03794952]
[1761714529415,0.17695983,113020.0,113010.0,0.06065952]
[1761714532275,0.58436406,113030.0,113010.0,0.06065952]
[1761714532500,0.17695983,113020.0,113010.0,0.06065952]
[1761714533122,0.17695983,113020.0,113010.0,0.03794952]
[1761714533525,0.17695983,113020.0,113010.0,0.03594952]
[1761714533766,0.17695983,113020.0,113010.0,0.03694952]
[1761714534181,0.20793983,113020.0,113010.0,0.03594952]
[1761714534408,0.22904983,113020.0,113010.0,0.01323952]
[1761714534599,0.64426376,113020.0,113010.0,0.01523952]
[1761714534823,0.60140376,113020.0,113010.0,0.03794952]
[1761714535236,0.22904983,113020.0,113010.0,0.03794952]
[1761714535851,0.19806983,113020.0,113010.0,0.03794952]
[1761714536252,0.17695983,113020.0,113010.0,0.03794952]
[1761714536460,0.17695983,113020.0,113010.0,0.06065952]
[1761714536811,0.17695983,113020.0,113010.0,0.03794952]
[1761714538706,0.20793983,113020.0,113010.0,0.03794952]
[1761714540677,0.22904983,113020.0,113010.0,0.03794952]
[1761714541079,0.27190983,113020.0,113010.0,0.01523952]
[1761714541301,1.01661769,113020.0,113010.0,0.00300952]
[1761714541508,1.03572502,113020.0,113010.0,0.00300952]
[1761714542126,1.04401862,113020.0,113010.0,0.00300952]
[1761714542331,1.03572502,113020.0,113010.0,0.00300952]
[1761714543115,1.03572502,113020.0,113010.0,0.00100952]
[1761714552037,1.12554403,113020.0,113010.0,0.00100952]
[1761714556597,0.7531901,113020.0,113010.0,0.00100952]
[1761714566430,0.75318322,113020.0,113010.0,0.00100952]
[1761714568526,0.76147661,113020.0,113010.0,0.00100952]
[1761714574166,1.13383054,113020.0,113010.0,0.00100952]
[1761714576317,1.1577061,113020.0,113010.0,0.00100952]
[1761714579701,1.19388838,113020.0,113010.0,0.00100952]
[1761714582327,1.19389654,113020.0,113010.0,0.00100952]
[1761714584824,1.56625047,113020.0,113010.0,0.00100952]
[1761714585027,1.19389654,113020.0,113010.0,0.00100952]
[1761714585236,1.220486,113020.0,113010.0,0.00100952]
[1761714590870,0.47577814,113020.0,113010.0,0.00100952]
[1761714591073,1.220486,113020.0,113010.0,0.00100952]
[1761714591936,1.2204818,113020.0,113010.0,0.00100952]
[1761714593472,0.84829677,113020.0,113010.0,0.00100952]
[1761714596294,1.5608196,113020.0,113010.0,0.00100952]
[1761714596490,1.72297696,113020.0,113010.0,1e-08]
[1761714596735,1.69117272,113020.0,113010.0,1e-08]
[1761714597032,1.64335525,113020.0,113010.0,1e-08]
[1761714597445,1.69112016,113020.0,113010.0,1e-08]
[1761714599007,1.74655524,113020.0,113010.0,1e-08]
[1761714599207,0.17702248,112980.0,112970.0,0.0012743]
[1761714599443,0.59556531,112980.0,112970.0,0.0012743]
[1761714599661,0.63653531,112980.0,112970.0,0.0012743]
[1761714600028,0.63653531,112980.0,112970.0,0.00233737]
[1761714600525,0.63653531,112980.0,112970.0,0.00282184]
[1761714601908,0.63653531,112980.0,112970.0,0.00382184]
[1761714602078,0.65561942,112980.0,112970.0,0.00382184]
[1761714602390,0.63653531,112980.0,112970.0,0.00382184]
[1761714602737,0.63653531,112980.0,112970.0,0.00282184]
[1761714608573,0.26401248,112980.0,112970.0,0.00282184]
[1761714608775,0.63653531,112980.0,112970.0,0.00282184]
[1761714610546,0.26401248,112980.0,112970.0,0.00282184]
[1761714610675,0.63653531,112980.0,112970.0,0.00282184]
[1761714617483,0.7625366,112980.0,112970.0,0.00282184]
[1761714619338,0.57136959,112980.0,112970.0,0.00282184]
[1761714619535,0.74839207,112980.0,112970.0,0.00282184]
[1761714622435,0.76747521,112980.0,112970.0,0.00282184]
[1761714623317,0.77576017,112980.0,112970.0,0.00282184]
[1761714629588,0.7996141,112980.0,112970.0,0.00282184]
[1761714633338,0.42709127,112980.0,112970.0,0.00282184]
[1761714633538,0.7996141,112980.0,112970.0,0.00282184]
[1761714638388,0.77576017,112980.0,112970.0,0.00282184]
[1761714642695,0.77577905,112980.0,112970.0,0.00282184]
[1761714642904,0.32610394,112980.0,112970.0,0.02683184]
[1761714643106,0.20440946,112980.0,112970.0,0.42336467]
[1761714643327,0.17702248,112980.0,112970.0,0.44995759]
[1761714643548,0.17702248,112980.0,112970.0,0.07743476]
[1761714644552,0.17702248,112980.0,112970.0,0.07843476]
[1761714649761,0.17702248,112980.0,112970.0,0.05442476]
[1761714649976,0.20129248,112980.0,112970.0,0.05442476]
[1761714650187,0.26108248,112980.0,112970.0,0.05442476]
[1761714650394,0.26108248,112980.0,112970.0,0.03041476]
[1761714651072,0.26108248,112980.0,112970.0,0.05442476]
[1761714651326,0.22072248,112980.0,112970.0,0.05442476]
[1761714652211,0.26108248,112980.0,112970.0,0.05442476]
[1761714652738,0.22072248,112980.0,112970.0,0.05442476]
[1761714653183,0.26108248,112980.0,112970.0,0.03041476]
[1761714655413,0.59335448,112980.0,112970.0,0.05442476]
[1761714658945,0.17702248,112980.0,112970.0,0.45106676]
[1761714659561,0.14734936,112990.0,112980.0,0.02401]
[1761714659765,0.14734936,112990.0,112980.0,0.427992]
[1761714660878,0.14734936,112990.0,112980.0,0.45458226]
[1761714662158,0.14734936,112990.0,112980.0,1.00423674]
[1761714662747,0.18586678,113000.0,112980.0,1.00423674]
[1761714662988,0.18586678,113000.0,112990.0,0.420652]
[1761714663540,0.18586678,113000.0,112990.0,0.44724023]
[1761714664596,0.18586678,113000.0,112990.0,0.07460823]
[1761714664823,0.18586678,113000.0,112990.0,0.07760823]
[1761714665189,0.18586678,113000.0,112990.0,0.05359823]
[1761714665190,0.22956678,113000.0,112990.0,0.05359823]
[1761714665424,0.22956678,113000.0,112990.0,0.05423593]
[1761714666481,0.60219878,113000.0,112990.0,0.05423593]
[1761714669238,1.01456078,113000.0,112990.0,0.0036377]
[1761714669784,0.64192878,113000.0,112990.0,0.0036377]
[1761714670163,1.01456078,113000.0,112990.0,0.0006377]
[1761714670591,1.01456078,113000.0,112990.0,0.0016377]
[1761714671241,0.55849878,113000.0,112990.0,0.0238277]
[1761714673653,0.18586678,113000.0,112990.0,0.0238277]
[1761714674702,0.55849878,113000.0,112990.0,0.0238277]
[1761714675190,0.18586678,113000.0,112990.0,0.43635038]
[1761714675409,0.18586678,113000.0,112990.0,0.59565651]
[1761714675679,0.18586678,113000.0,112990.0,0.0460177]
[1761714675861,0.53055995,113010.0,112990.0,0.06371838]
[1761714676060,0.18586994,113000.0,112990.0,0.04152838]
[1761714676495,0.18586994,113000.0,112990.0,0.06271838]
[1761714676707,0.18586994,113000.0,112990.0,0.43535038]
[1761714676914,0.18586994,113000.0,112990.0,0.4206497]
[1761714677740,0.18586994,113000.0,112990.0,0.0480177]
[1761714677916,0.18586994,113000.0,112990.0,0.06571838]
[1761714678344,0.18586994,113000.0,112990.0,0.0480177]
[1761714686632,0.18586994,113000.0,112990.0,0.0258277]
[1761714686849,0.23070994,113000.0,112990.0,0.0258277]
[1761714687319,0.18586994,113000.0,112990.0,0.0258277]